Cogmind - Beta 10.2 @@@ ROGUE MODE // 2022.02.05 @ 16:02:57 Player: Kaz Result: Destroyed by G-47 Trooper with Particle Gun Performance ------------- Evolutions (0) 0 Regions Visited (1) 200 Robots Destroyed (11) 55 Value Destroyed (307) 307 Prototype IDs (2) 40 Alien Tech Used (0) 0 Bonus (0) 0 TOTAL SCORE: 602 Bonus ------- None Cogmind --------- Core Integrity 0/250 Matter 300/300 Energy 261/265 System Corruption 0% Temperature Cool (64) Movement Rolling (90) Location -10/Materials Parts ------- > --- POWER (1) -------- Improved Ion Engine > --- PROPULSION (2) --- Wheel Compact Wheel > --- UTILITY (2) ------ Disposable Heat Sink Medium Storage Unit > --- WEAPON (2) ------- Mining Claw > --- INVENTORY (8) ---- Aluminum Leg Large Matter Pod (30) High-capacity Matter Pod (0) Core Shielding Peak State ------------ > --- POWER ------------ Improved Ion Engine > --- PROPULSION ------- Compact Wheel Compact Wheel > --- UTILITY ---------- Disposable Heat Sink Small Storage Unit > --- WEAPON ----------- Particle Cannon Particle Cannon > --- INVENTORY -------- Improved Ion Engine Particle Cannon Particle Cannon Light Assault Rifle [Rating: 11] Favorites ----------- Power Improved Ion Engine Engine Improved Ion Engine Propulsion Compact Wheel Wheel Compact Wheel Flight Unit Flight Unit Utility Disposable Heat Sink Device Disposable Heat Sink Storage Medium Storage Unit Weapon Particle Cannon Energy Gun Small Laser Energy Cannon Particle Cannon Ballistic Gun Light Assault Rifle Slashing Weapon Mining Claw Build | -11 -10 ------- Run | Scr Mat Slots Evolved . | . . Power . | . . Propulsion . | . . Utility . | . . Weapon . | . . Parts Attached 20 | 5 15 Power 3 | 1 2 Engine 3 | 1 2 Core . | . . Reactor . | . . Propulsion 6 | 2 4 Treads . | . . Leg . | . . Wheel 4 | 2 2 Hover . | . . Flight 2 | . 2 Utility 3 | 1 2 Device 1 | . 1 Storage 2 | 1 1 Processor . | . . Hackware . | . . Protection . | . . Artifact . | . . Weapon 8 | 1 7 Energy Gun 1 | . 1 Energy Cannon 4 | . 4 Ballistic Gun 2 | 1 1 Ballistic Cannon . | . . Launcher . | . . Special Weapon . | . . Impact Weapon . | . . Slashing Weapon 1 | . 1 Piercing Weapon . | . . Special Melee Weapon . | . . Unidentified Prototypes . | . . Parts Lost 8 | . 8 Power 1 | . 1 Propulsion 2 | . 2 Utility . | . . Weapon 5 | . 5 Highest Loss Streak 6 | . 6 Average Slot Usage (%) 70 | . 70 Engine 9 | . 9 Wheel 8 | . 8 Flight 2 | . 2 Device 13 | . 13 Storage 14 | . 14 Energy Gun 4 | . 4 Energy Cannon 15 | . 15 Slashing Weapon 1 | . 1 Naked Turns . | . . Heaviest Build 24 | 10 24 Greatest Support 32 | 32 32 Greatest Overweight (x) 7 | . 7 Average Overweight (x) 1 | . 2 Largest Inventory Capacity 8 | 6 8 Average Capacity 7 | 5 7 Most Carried 5 | 1 5 Average Carried 2 | . 2 Final Capacity 8 | 6 8 Final Carried 4 | . 4 Class Distribution -------------------- 100% | Mutant Dominant Class ---------------- Mutant | -10/Materials Resources | -11 -10 ----------- Run | Scr Mat Matter Collected 399 | 206 193 Remotely . | . . Salvage Created 364 | . 364 Parts 23 | . 23 Haulers Intercepted . | . . Recyclers Shooed 1 | . 1 Parts Field Recycled . | . . Retrieved Matter . | . . Parts Self-Destructed . | . . Prevented . | . . Kills | -11 -10 ------- Run | Scr Mat Combat Hostiles Destroyed 10 | . 10 Guns 4 | . 4 Cannons 6 | . 6 Classes Destroyed 3 | . 3 Watcher 1 | . 1 Swarmer 3 | . 3 Grunt 7 | . 7 Best Kill Streak 6 | . 6 Combat Bots Only 6 | . 6 Max Kills in Single Turn 1 | . 1 Gunslinging . | . . Exploded . | . . Melee . | . . Uniques/NPCs Destroyed . | . . Combat | -11 -10 -------- Run | Scr Mat Damage Taken 936 | . 936 Core 262 | . 262 Absorbed by Shields . | . . Core Remaining (%) 100 | 100 . Volleys Fired 48 | . 48 Largest 2 | . 2 Hottest 136 | . 136 Shots Fired 67 | . 67 Gun 27 | . 27 Cannon 40 | . 40 Launcher . | . . Special . | . . Kinetic 9 | . 9 Thermal 58 | . 58 Explosive . | . . Electromagnetic . | . . Robot Hit Streak 13 | . 13 Robot Miss Streak 3 | . 3 Penetration Max . | . . Secondary Targets . | . . Shots Hit Robots 46 | . 46 Core Hits 17 | . 17 Critical Hits 1 | . 1 Critical Kills 1 | . 1 Critical Parts Destroyed . | . . Melee Attacks 1 | . 1 Impact . | . . Slashing 1 | . 1 Piercing . | . . Sneak Attacks . | . . Combat Hostiles . | . . Follow-up Attacks . | . . Damage Inflicted 733 | . 733 Guns 202 | . 202 Cannons 509 | . 509 Explosions . | . . Melee 22 | . 22 Ramming . | . . Kinetic 51 | . 51 Thermal 660 | . 660 Explosive . | . . Electromagnetic . | . . Impact . | . . Slashing 22 | . 22 Piercing . | . . Highest Corruption . | . . Average Corruption . | . . Corruption Purged . | . . Overload Shots . | . . Overflow Damage 3 | . 3 Projectiles 3 | . 3 Explosions . | . . Melee . | . . Knockbacks . | . . Impact . | . . Kinetic . | . . Secondary . | . . Self-Inflicted Damage . | . . Shots . | . . Rammed . | . . Targets Rammed . | . . Kicked . | . . Crushed . | . . Highest Temperature 199 | . 199 Average Temperature 97 | . 97 Received Heat Transfer 420 | . 420 Siege Activations . | . . Robots Corrupted . | . . Combat Hostiles . | . . Parts Fried . | . . Impact Corruptions . | . . Robots Melted . | . . Combat Hostiles . | . . Parts Melted 1 | . 1 Heat Transferred 1275 | . 1275 Parts Sabotaged . | . . Parts Stolen . | . . Parts Stripped . | . . Power Chain Reactions . | . . Missiles Intercepted . | . . Alert | -11 -10 ------- Run | Scr Mat Peak Influence 162 | . 162 Initial . | . . Average 83 | . 90 Maximum Alert Level . | . . Low Security (%) 100 | 100 100 Level 1 . | . . Level 2 . | . . Level 3 . | . . Level 4 . | . . Level 5 . | . . High Security . | . . Max Security . | . . Squads Dispatched 2 | . 2 Investigation 1 | . 1 Extermination . | . . Reinforcement 1 | . 1 Assault . | . . Garrison . | . . Intercept . | . . Construction Impeded . | . . Haulers Reinforced . | . . Stealth | -11 -10 --------- Run | Scr Mat Distress Signals . | . . Communications Jammed . | . . Distress Signals . | . . Times Spotted 15 | . 15 Peak Tracking Total 6 | . 6 Tactical Retreats . | . . Traps | -11 -10 ------- Run | Scr Mat Traps Triggered . | . . Indirectly . | . . Trap Hack Attempts . | . . Triggered . | . . Disarmed . | . . Reprogrammed . | . . Reused . | . . Traps Extracted . | . . Installed . | . . Triggered . | . . Machines | -11 -10 ---------- Run | Scr Mat Machines Disabled 1 | . 1 Max in Single Turn 1 | . 1 Machines Sabotaged . | . . Garrisons Compromised . | . . Overloaded Fab Kills . | . . Fab Network Shutdowns . | . . Hacking | -11 -10 --------- Run | Scr Mat Machines Accessed 4 | . 4 Terminals 4 | . 4 Fabricators . | . . Repair Stations . | . . Recycling Units . | . . Scanalyzers . | . . Garrison Access . | . . Total Hacks 16 | . 16 Successful 14 | . 14 Failed 2 | . 2 Catastrophic 1 | . 1 Database Lockouts . | . . Manual . | . . Terminals 16 | . 16 Fabricators . | . . Repair Stations . | . . Recycling Units . | . . Scanalyzers . | . . Garrison Access . | . . Terminal Hacks 14 | . 14 Record 8 | . 8 Prototype ID Bank 1 | . 1 Emergency Access Points 2 | . 2 Dispatch Records 1 | . 1 Transport Status 1 | . 1 Hauler Manifests 1 | . 1 Fabricator Hacks . | . . Repair Station Hacks . | . . Recycling Unit Hacks . | . . Scanalyzer . | . . Garrison Access Hacks . | . . Unauthorized Hacks . | . . Terminals . | . . Fabricators . | . . Repair Stations . | . . Recycling Units . | . . Scanalyzers . | . . Garrison Access . | . . Data Cores Recovered . | . . Used . | . . Hacking Detections 3 | . 3 Full Trace Events 1 | . 1 Feedback Events . | . . Feedback Blocked . | . . Robot Schematics Acquired . | . . Robots Built . | . . Matter . | . . Time . | . . Total Robot Build Rating . | . . Part Schematics Acquired . | . . Parts Built . | . . Matter . | . . Time . | . . Total Part Build Rating . | . . Parts Repaired . | . . Time . | . . Parts Recycled . | . . Recycled Matter . | . . Retrieved Matter . | . . Retrieved Components . | . . Parts Scanalyzed . | . . Part Schematics Acquired . | . . Parts Damaged . | . . Bothacking | -11 -10 ------------ Run | Scr Mat Used RIF Installer . | . . Robots Hacked . | . . Non-combat . | . . Combat . | . . Robot Hacks Applied . | . . Relay Couplers Released . | . . Robots Rewired . | . . Allies Hacked . | . . Hacks Repelled . | . . Allies | -11 -10 -------- Run | Scr Mat Total Allies . | . . Largest Group . | . . Highest-Rated Group . | . . Highest-Rated Ally . | . . Total Orders . | . . Ally Attacks . | . . Total Damage . | . . Kills . | . . Allies Corrupted . | . . Allies Melted . | . . Intel | -11 -10 ------- Run | Scr Mat Robot Analysis Total . | . . Derelict Logs Recovered . | . . Drone Launches . | . . Drone Recoveries . | . . Exploration | -11 -10 ------------- Run | Scr Mat Turns Passed 664 | 53 611 Spaces Moved 297 | 43 254 Core 98 | 2 96 Treads . | . . Legs . | . . Wheels 179 | 41 138 Hover . | . . Flight 20 | . 20 Fastest Speed 50 | 50 90 Average Speed 166 | 97 178 Slowest Speed 440 | 100 440 Overloaded Moves . | . . Propulsion Burnouts . | . . Robots Hopped . | . . Cave-ins Triggered . | . . Exploration Rate (%) 27 | 3 51 Regions Visited 1 Branch Regions . Pre-discovered Areas . | . . Known Exits Taken . | . . Unknown Exits Taken 1 | 1 . Scrap Searched . | . . Spaces Dug . | . . Terrain Destroyed . | . . Melee . | . . Projectile . | . . AOE . | . . Terrain Rammed . | . . Walls Destroyed . | . . Machines Disabled . | . . Actions | -11 -10 --------- Run | Scr Mat Total 401 | 54 347 Wait 8 | 2 6 Move 296 | 42 254 Hop . | . . Pick Up 23 | 5 18 Fast Attach . | . . Attach 15 | 5 10 Detach . | . . Swap 5 | . 5 Drop 5 | . 5 Fire 48 | . 48 Melee 1 | . 1 Ram . | . . Kick . | . . Crush . | . . Escape Stasis . | . . Rewire . | . . Trap . | . . Miscellaneous . | . . Route ------- -11/Scrapyard -10/Materials (discovered 1 exit: [*Min]) History --------- Turn | Location | Event 14 | -11/Scrapyard | Discovered new exit (range 16) 54 | -11/Scrapyard | Entered Materials 178 | -10/Materials | Core integrity fell below 50% 212 | -10/Materials | Discovered new exit (range 16) 214 | -10/Materials | Lost 6 parts (1p2n3w) 313 | -10/Materials | Build established: Mutant 649 | -10/Materials | Core integrity fell below 20% 665 | -10/Materials | Destroyed by G-47 Trooper with Particle Gun Last Messages --------------- 00554_ K-01 Serf cleans the Electrolysis Chamber. 00554_ Dropped Flight Unit. 00558_ K-01 Serf collects debris. 00559_ Acquired Hcp. Matter Pod. 00562_ Acquired Core Shielding. 00568_ K-01 Serf cleans the Recycling Unit. 00572_ R-06 Scavenger collects Flight Unit. 00580_ Electrolysis Chamber disabled. 00600_ Acquired Com. Wheel. 00603_ Acquired Mining Claw. 00604_ K-01 Serf collects debris. 00606_ Dropped Particle Cannon. 00612_ Acquired Lrg. Matter Pod. 00624_ R-06 Scavenger inserts Flight Unit into recycling unit. 00639_ G-34 Mercenary destroyed. 00642_ Acquired Aluminum Leg. 00643_ Acquired 44 matter. 00652_ W-16 Scout destroyed. 00654_ Acquired 11 matter. 00663_ Sml. Laser destroyed. Map ----- +----------------------------------------------------+ | | | ?????????????????????????????????????????????????? | | ?????????????????????????????????????????????????? | | ?????????????????????????????????????????????????? | | ?????????????????????????????????????????????????? | | ?????????????????????????????????????????????????? | | ?????????????????????????????????????????????????? | | ?????????????????????????????????????????????????? | | ?????????????????????????????????????????????????? | | ????????????????????????? ?????????????????????? | | ????????????????????????? ????????????????????? | | ????????????????????????? ????????????????????? | | ????????????????????????? #????????????????????? | | ????????????????????????# #????????????????????? | | ????????????????????????#u #????????????????????? | | ????????????????????????#a #????????????????????? | | ????????????????????????# #????????????????????? | | ######??????????????????# #????????????????????? | | #??????????????????# #????????????????????? | | """ #??????????????????# #????????????????????? | | """ #??????????????????# #????? #?????????????? | | """ #########??????????# #???? #?????????????? | | + ##########?# #### #?????????????? | | ###### ## #?# #?????????????? | | ##+###????# ## [###!= #?????????????? | | + ####### + ! + !@= #?????????????? | | # | # =####g#########???#?????????? | | + # # #??? #####?????? | | # """ ""# # T *!! #??? ?????? | | # """ Y"# # *!! +??? ??????? | | # """ ""# # *! #??? ???????? | | # + # #??? #???????? | | # # # #??? #???????? | | ## ### % ###### # #??? #???????? | | ?# #?# #????###############+######## #???????? | | ?# ## #???# ##### ^ """ #???????? | | ?# ## ?? "Y" % #???????? | | ?# ## < #???????? | | ?# ## ^^ #???????? | | ??+## ##### ##### % % #???????? | | ????## ##???? "!"|"?????## % #???????? | | ?????# #???????!"????????# #???????? | | ?????# ?????????????????# % #???????? | | ????? ???????###########^ "" #???????? | | ?????# ???????# + """"" #???????? | | ?????# ??????# # ^ """"" #???????? | | ?????# ??????# # """"" #???????? | | ?????# !??????# + """"" #???????? | | ?????? ##??????########### """"" #???????? | | ?????? ??????????######### """"" #???????? | +----------------------------------------------------+ Best States ------------- Heat Dissipation 25 Coolant Potential 50 Energy Generation 12 Energy Capacity 265 Matter Stores 300 Matter Capacity 300 Sight Range 16 Terrain Scan Density 10 Evasion (%) 42 Item Schematics ----------------- None Robot Schematics ------------------ None Fabricated ------------ Nothing Alien Tech Used ----------------- None Achievements -------------- None Challenges ------------ None Game ------ Seed CoilGravitonPit Manual? 0 Play Time 00:12:02 Cumulative 26.0 hours Start 2022.02.05 @ 15:49:10 End 2022.02.05 @ 16:02:57 Sessions 1 Manual Loads 0 Difficulty Rogue Special Mode None Game No. 35 Rogue 32 Adventurer 3 Explorer 0 Win Type - Total 0 Types 0/0/0/0/0/0/0/0/0 Lore% 6 Gallery% 18 Achievement% 11 Wizard Run 0 Options --------- ASCII 0 Keyboard 0 Movement Mouse Keybinds 0 Fullscreen 1 Font 24/Proggy Map View 113x50 Tactical HUD 1 Map Filters NONE Filters NONE Steam 1 RUN: 31567d85-be93-44c6-b947-bea9c835eb1e